fUST/lending_fUST_20250204
["ID","MTS","AMOUNT","RATE_DAILY","PERIOD"]
[351640639,1738681840946,-500.0,0.00016575,2]
[351640640,1738681840955,-500.0,0.00016575,2]
[351640643,1738681840965,-500.0,0.00016575,2]
[351640645,1738681840975,-500.0,0.00016575,2]
[351640646,1738681840985,-968.27,0.00016575,2]
[351640648,1738681840994,-500.0,0.00016575,2]
[351640650,1738681841004,-500.0,0.00016575,2]
[351640652,1738681841014,-500.0,0.00016575,2]
[351640654,1738681841024,-500.0,0.00016575,2]
[351640656,1738681841033,-500.0,0.00016575,2]
[351640658,1738681841043,-500.0,0.00016575,2]
[351640660,1738681841054,-797.58,0.00016575,2]
[351640662,1738681841064,-500.0,0.00016575,2]
[351640664,1738681841074,-553.89,0.00016575,2]
[351640666,1738681841083,-500.0,0.00016575,2]
[351640668,1738681841092,-500.0,0.00016575,2]
[351640670,1738681841102,-1629.5,0.00016575,2]
[351640672,1738681841112,-515.88896787,0.00016575,2]
[351640674,1738681841122,-455.42794334,0.00016575,2]
[351640676,1738681841131,-500.0,0.00016575,2]
[351640678,1738681841141,-1163.12,0.00016575,2]
[351640680,1738681841151,-717.9,0.00016575,2]
[351640682,1738681841160,-500.0,0.00016575,2]
[351640684,1738681841170,-500.0,0.00016575,2]
[351640686,1738681841180,-1531.56,0.00016575,2]
[351640688,1738681841192,-500.0,0.00016575,2]
[351640690,1738681841201,-500.0,0.00016575,2]
[351640692,1738681841211,-1020.51,0.00016575,2]
[351640694,1738681841221,-513.62360964,0.00016575,2]
[351640696,1738681841231,-16318.68,0.00016575,2]
[351640698,1738681841242,-927.41,0.00016575,2]
[351640700,1738681841251,-500.0,0.00016575,2]
[351640702,1738681841261,-500.0,0.00016575,2]
[351640704,1738681841270,-500.0,0.00016575,2]
[351640706,1738681841279,-500.0,0.00016575,2]
[351640708,1738681841290,-500.0,0.00016575,2]
[351640710,1738681841299,-42905.46,0.00016575,2]
[351640712,1738681841308,-500.0,0.00016575,2]
[351640714,1738681841318,-500.0,0.00016575,2]
[351640716,1738681841328,-3843.13,0.00016575,2]
[351640718,1738681841337,-1015.42,0.00016575,2]
[351640720,1738681841347,-901.96,0.00016575,2]
[351640722,1738681841357,-1397.81,0.00016575,2]
[351640724,1738681841367,-582.16,0.00016575,2]
[351640726,1738681841377,-500.0,0.00016575,2]
[351640728,1738681841389,-3029.23,0.00016575,2]
[351640730,1738681841399,-295.91829999,0.00016575,2]
[351640732,1738681841408,-500.0,0.00016575,2]
[351640734,1738681841419,-980.49,0.00016575,2]
[351640736,1738681841428,-500.0,0.00016575,2]
[351640738,1738681841441,-1477.65,0.00016575,2]
[351640740,1738681841451,-500.0,0.00016575,2]
[351640742,1738681841460,-1110.71,0.00016575,2]
[351640744,1738681841471,-1200.86,0.00016575,2]
[351640746,1738681841481,-500.0,0.00016575,2]
[351640748,1738681841491,-697.17,0.00016575,2]
[351640750,1738681841500,-500.0,0.00016575,2]
[351640752,1738681841509,-953.78,0.00016575,2]
[351640754,1738681841519,-454.25895665,0.00016575,2]
[351640756,1738681841528,-1448.74,0.00016575,2]
[351640758,1738681841537,-500.0,0.00016575,2]
[351640760,1738681841546,-2224.89,0.00016575,2]
[351640762,1738681841557,-500.0,0.00016575,2]
[351640764,1738681841567,-500.0,0.00016575,2]
[351640766,1738681841577,-1356.74,0.00016575,2]
[351640768,1738681841587,-500.0,0.00016575,2]
[351640770,1738681841597,-1429.26,0.00016575,2]
[351640772,1738681841606,-6350.82,0.00016575,2]
[351640774,1738681841616,-500.0,0.00016575,2]
[351640776,1738681841625,-500.0,0.00016575,2]
[351640778,1738681841635,-1081.14,0.00016575,2]
[351640780,1738681841646,-1083.74,0.00016575,2]
[351640782,1738681841656,-500.0,0.00016575,2]
[351640784,1738681841666,-2703.72,0.00016575,2]
[351640786,1738681841675,-9905.86,0.00016575,2]
[351640788,1738681841686,-500.0,0.00016575,2]
[351640790,1738681841695,-500.0,0.00016575,2]
[351640792,1738681841704,-3014.71,0.00016575,2]
[351640794,1738681841714,-500.0,0.00016575,2]
[351640796,1738681841724,-500.0,0.00016575,2]
[351640798,1738681841733,-509.42,0.00016575,2]
[351640800,1738681841743,-1254.6,0.00016575,2]
[351640802,1738681841752,-1950.16,0.00016575,2]
[351640804,1738681841762,-1036.56,0.00016575,2]
[351640806,1738681841771,-673.62,0.00016575,2]
[351640808,1738681841781,-1414.72,0.00016575,2]
[351640810,1738681841791,-500.0,0.00016575,2]
[351640812,1738681841800,-1491.03,0.00016575,2]
[351640814,1738681841809,-500.0,0.00016575,2]
[351640816,1738681841819,-2485.55,0.00016575,2]
[351640818,1738681841829,-606.05,0.00016575,2]
[351640820,1738681841838,-4907.09,0.00016575,2]
[351640822,1738681841848,-500.0,0.00016575,2]
[351640824,1738681841858,-500.0,0.00016575,2]
[351640826,1738681841867,-3551.06,0.00016575,2]
[351640828,1738681841877,-500.0,0.00016575,2]
[351640830,1738681841886,-500.0,0.00016575,2]
[351640832,1738681841896,-1039.9,0.00016575,2]
[351640834,1738681841906,-624.27618902,0.00016575,2]
[351640836,1738681841915,-500.0,0.00016575,2]
[351640839,1738681841926,-25108.14032114,0.00016612,2]
[351640841,1738681841938,-599.0,0.0001662,2]
[351640843,1738681841947,-1126.8742391,0.00016638,2]
[351640845,1738681841956,-1857.46,0.000167,2]
[351640847,1738681841966,-500.0,0.00016712,2]
[351640849,1738681841976,-500.0,0.00016712,2]
[351640851,1738681841985,-500.0,0.00016712,2]
[351640853,1738681841995,-500.0,0.00016712,2]
[351640854,1738681842005,-500.0,0.00016712,2]
[351640855,1738681842016,-500.0,0.00016712,2]
[351640856,1738681842026,-500.0,0.00016712,2]
[351640857,1738681842035,-500.0,0.00016712,2]
[351640858,1738681842046,-1127.12,0.00016712,2]
[351640859,1738681842055,-1232.19,0.00016712,2]
[351640860,1738681842065,-500.0,0.00016712,2]
[351640861,1738681842075,-500.0,0.00016712,2]
[351640862,1738681842084,-500.0,0.00016712,2]
[351640863,1738681842094,-500.0,0.00016712,2]
[351640864,1738681842103,-500.0,0.00016712,2]
[351640865,1738681842114,-677.23,0.00016712,2]
[351640866,1738681842138,-500.0,0.00016712,2]
[351640867,1738681842152,-1294.44,0.00016712,2]
[351640868,1738681842162,-500.0,0.00016712,2]
[351640869,1738681842173,-500.0,0.00016712,2]
[351640870,1738681842187,-538.68,0.00016712,2]
[351640871,1738681842197,-500.0,0.00016712,2]
[351640872,1738681842207,-500.0,0.00016712,2]
[351640873,1738681842218,-500.0,0.00016712,2]
[351640874,1738681842228,-550.84,0.00016712,2]
[351640875,1738681842238,-500.0,0.00016712,2]
[351640876,1738681842247,-999.3,0.00016712,2]
[351640877,1738681842257,-500.0,0.00016712,2]
[351640878,1738681842268,-2999.41,0.00016712,2]
[351640879,1738681842278,-500.0,0.00016712,2]
[351640880,1738681842288,-500.0,0.00016712,2]
[351640881,1738681842299,-500.0,0.00016712,2]
[351640882,1738681842309,-500.0,0.00016712,2]
[351640883,1738681842319,-533.12,0.00016712,2]
[351640884,1738681842328,-500.0,0.00016712,2]
[351640885,1738681842338,-500.0,0.00016712,2]
[351640886,1738681842348,-500.0,0.00016712,2]
[351640887,1738681842358,-500.0,0.00016712,2]
[351640888,1738681842370,-500.0,0.00016712,2]
[351640889,1738681842380,-500.0,0.00016712,2]
[351640890,1738681842390,-500.0,0.00016712,2]
[351640891,1738681842401,-968.27,0.00016712,2]
[351640892,1738681842412,-500.0,0.00016712,2]
[351640893,1738681842422,-500.0,0.00016712,2]
[351640894,1738681842432,-500.0,0.00016712,2]
[351640895,1738681842444,-500.0,0.00016712,2]
[351640896,1738681842455,-500.0,0.00016712,2]
[351640897,1738681842464,-500.0,0.00016712,2]
[351640898,1738681842474,-797.58,0.00016712,2]
[351640899,1738681842484,-597.71742064,0.00016712,2]
[351640900,1738681842494,-553.89,0.00016712,2]
[351640901,1738681842504,-500.0,0.00016712,2]
[351640902,1738681842514,-636.1751788,0.00016712,2]
[351640903,1738681842523,-1629.5,0.00016712,2]
[351640904,1738681842533,-500.0,0.00016712,2]
[351640905,1738681842542,-1163.12,0.00016712,2]
[351640906,1738681842552,-717.9,0.00016712,2]
[351640907,1738681842562,-500.0,0.00016712,2]
[351640908,1738681842571,-270.75072042,0.00016712,2]
[351640909,1738681842581,-1531.56,0.00016712,2]
[351640910,1738681842591,-500.0,0.00016712,2]
[351640911,1738681842600,-500.0,0.00016712,2]
[351640912,1738681842610,-1020.51,0.00016712,2]
[351640913,1738681842621,-16318.68,0.00016712,2]
[351640914,1738681842630,-927.41,0.00016712,2]
[351640915,1738681842640,-500.0,0.00016712,2]
[351640916,1738681842650,-500.0,0.00016712,2]
[351640917,1738681842659,-414.81826161,0.00016712,2]
[351640918,1738681842818,-500.0,0.00016712,2]
[351640919,1738681842828,-264.12733185,0.00016712,2]
[351640920,1738681842838,-42905.46,0.00016712,2]
[351640921,1738681842847,-500.0,0.00016712,2]
[351640922,1738681842856,-3843.13,0.00016712,2]
[351640923,1738681842865,-1015.42,0.00016712,2]
[351640924,1738681842875,-901.96,0.00016712,2]
[351640925,1738681842884,-1397.81,0.00016712,2]
[351640926,1738681842894,-500.0,0.00016712,2]
[351640927,1738681842903,-3029.23,0.00016712,2]
[351640929,1738681842913,-500.0,0.00016712,2]
[351640930,1738681842923,-980.49,0.00016712,2]
[351640931,1738681842933,-500.0,0.00016712,2]
[351640932,1738681842945,-1477.65,0.00016712,2]
[351640933,1738681842954,-500.0,0.00016712,2]
[351640935,1738681842964,-1110.71,0.00016712,2]
[351640938,1738681842973,-1200.86,0.00016712,2]
[351640939,1738681842983,-417.57612933,0.00016712,2]
[351640940,1738681842993,-697.17,0.00016712,2]
[351640941,1738681843003,-500.0,0.00016712,2]
[351640942,1738681843013,-953.78,0.00016712,2]
[351640943,1738681843023,-1448.74,0.00016712,2]
[351640944,1738681843033,-500.0,0.00016712,2]
[351640945,1738681843043,-2224.89,0.00016712,2]
[351640946,1738681843053,-500.0,0.00016712,2]
[351640947,1738681843063,-500.0,0.00016712,2]
[351640948,1738681843072,-1356.74,0.00016712,2]
[351640950,1738681843082,-520.89077666,0.00016712,2]
[351640952,1738681843092,-1429.26,0.00016712,2]
[351640953,1738681843104,-6350.82,0.00016712,2]
[351640954,1738681843114,-500.0,0.00016712,2]
[351640955,1738681843124,-500.0,0.00016712,2]
[351640956,1738681843134,-1081.14,0.00016712,2]
[351640957,1738681843144,-1083.74,0.00016712,2]
[351640958,1738681843154,-500.0,0.00016712,2]
[351640959,1738681843163,-2703.72,0.00016712,2]
[351640960,1738681843172,-9905.86,0.00016712,2]
[351640961,1738681843182,-500.0,0.00016712,2]
[351640962,1738681843195,-500.0,0.00016712,2]
[351640963,1738681843204,-3014.71,0.00016712,2]
[351640964,1738681843215,-500.0,0.00016712,2]
[351640965,1738681843224,-500.0,0.00016712,2]
[351640966,1738681843234,-509.42,0.00016712,2]
[351640967,1738681843245,-1254.6,0.00016712,2]
[351640968,1738681843255,-1950.16,0.00016712,2]
[351640969,1738681843265,-1036.56,0.00016712,2]
[351640970,1738681843275,-673.62,0.00016712,2]
[351640971,1738681843285,-1414.72,0.00016712,2]
[351640972,1738681843295,-500.0,0.00016712,2]
[351640973,1738681843305,-1491.03,0.00016712,2]
[351640975,1738681843315,-500.0,0.00016712,2]
[351640976,1738681843324,-2485.55,0.00016712,2]
[351640979,1738681843334,-606.05,0.00016712,2]
[351640981,1738681843344,-4907.09,0.00016712,2]
[351640983,1738681843353,-500.0,0.00016712,2]
[351640985,1738681843364,-500.0,0.00016712,2]
[351640987,1738681843376,-3551.06,0.00016712,2]
[351640989,1738681843386,-500.0,0.00016712,2]
[351640991,1738681843396,-500.0,0.00016712,2]
[351640993,1738681843406,-1039.9,0.00016712,2]
[351640995,1738681843417,-500.0,0.00016712,2]
[351640997,1738681843428,-1126.8742391,0.00016738,2]
[351640999,1738681843441,-13258.95722438,0.00016742,2]
[351641001,1738681843451,-461.92626543,0.00016784,2]
[351641003,1738681843463,-967.0,0.000168,6]
[351641005,1738681843474,-718.2177546,0.00016829,2]
[351641007,1738681843484,-1126.8742391,0.00016838,2]
[351641009,1738681843494,-500.0,0.00016848,2]
[351641011,1738681843504,-500.0,0.00016848,2]
[351641013,1738681843514,-310.79080162,0.00016848,2]
[351641015,1738681843525,-500.0,0.00016849,2]
[351641017,1738681843535,-500.0,0.00016849,2]
[351641020,1738681843546,-500.0,0.00016849,2]
[351641022,1738681843557,-643.78933209,0.00016849,2]
[351641024,1738681843567,-500.0,0.00016849,2]
[351641026,1738681843576,-500.0,0.00016849,2]
[351641028,1738681843586,-500.0,0.00016849,2]
[351641030,1738681843596,-500.0,0.00016849,2]
[351641032,1738681843606,-1127.12,0.00016849,2]
[351641034,1738681843617,-1232.19,0.00016849,2]
[351641036,1738681843626,-500.0,0.00016849,2]
[351641038,1738681843637,-500.0,0.00016849,2]
[351641040,1738681843646,-500.0,0.00016849,2]
[351641042,1738681843655,-500.0,0.00016849,2]
[351641044,1738681843664,-677.23,0.00016849,2]
[351641046,1738681843674,-500.0,0.00016849,2]
[351641048,1738681843686,-1294.44,0.00016849,2]
[351641050,1738681843696,-500.0,0.00016849,2]
[351641052,1738681843705,-500.0,0.00016849,2]
[351641054,1738681843715,-538.68,0.00016849,2]
[351641056,1738681843724,-500.0,0.00016849,2]
[351641058,1738681843734,-500.0,0.00016849,2]
[351641060,1738681843744,-500.0,0.00016849,2]
[351641062,1738681843754,-550.84,0.00016849,2]
[351641064,1738681843764,-500.0,0.00016849,2]
[351641066,1738681843775,-999.3,0.00016849,2]
[351641068,1738681843785,-500.0,0.00016849,2]
[351641070,1738681843794,-2999.41,0.00016849,2]
[351641072,1738681843803,-500.0,0.00016849,2]
[351641074,1738681843813,-500.0,0.00016849,2]
[351641076,1738681843822,-500.0,0.00016849,2]
[351641078,1738681843832,-500.0,0.00016849,2]
[351641080,1738681843842,-533.12,0.00016849,2]
[351641082,1738681843851,-500.0,0.00016849,2]
[351641084,1738681843860,-500.0,0.00016849,2]
[351641086,1738681843870,-500.0,0.00016849,2]
[351641088,1738681843880,-500.0,0.00016849,2]
[351641090,1738681843889,-500.0,0.00016849,2]
[351641092,1738681843898,-316.32770504,0.00016849,2]
[351641094,1738681843908,-555.91465726,0.00016849,2]
[351641096,1738681843917,-968.27,0.00016849,2]
[351641098,1738681843927,-500.0,0.00016849,2]
[351641100,1738681843938,-500.0,0.00016849,2]
[351641102,1738681843948,-500.0,0.00016849,2]
[351641104,1738681843958,-500.0,0.00016849,2]
[351641106,1738681843967,-500.0,0.00016849,2]
[351641108,1738681843978,-500.0,0.00016849,2]
[351641110,1738681843987,-797.58,0.00016849,2]
[351641112,1738681843995,-553.89,0.00016849,2]
[351641114,1738681844005,-500.0,0.00016849,2]
[351641116,1738681844015,-1629.5,0.00016849,2]
[351641118,1738681844024,-500.0,0.00016849,2]
[351641120,1738681844034,-1163.12,0.00016849,2]
[351641122,1738681844044,-717.9,0.00016849,2]
[351641124,1738681844053,-500.0,0.00016849,2]
[351641126,1738681844063,-1531.56,0.00016849,2]
[351641128,1738681844073,-500.0,0.00016849,2]
[351641130,1738681844083,-500.0,0.00016849,2]
[351641132,1738681844092,-1020.51,0.00016849,2]
[351641134,1738681844102,-16318.68,0.00016849,2]
[351641136,1738681844114,-927.41,0.00016849,2]
[351641138,1738681844122,-389.29435817,0.00016849,2]
[351641140,1738681844131,-500.0,0.00016849,2]
[351641142,1738681844140,-500.0,0.00016849,2]
[351641144,1738681844150,-42905.46,0.00016849,2]
[351641147,1738681844159,-500.0,0.00016849,2]
[351641149,1738681844168,-3843.13,0.00016849,2]
[351641151,1738681844178,-1015.42,0.00016849,2]
[351641153,1738681844190,-901.96,0.00016849,2]
[351641154,1738681844200,-1397.81,0.00016849,2]
[351641156,1738681844210,-500.0,0.00016849,2]
[351641158,1738681844219,-3029.23,0.00016849,2]
[351641160,1738681844228,-500.0,0.00016849,2]
[351641162,1738681844237,-980.49,0.00016849,2]
[351641164,1738681844247,-500.0,0.00016849,2]
[351641166,1738681844257,-1477.65,0.00016849,2]
[351641168,1738681844267,-500.0,0.00016849,2]
[351641170,1738681844276,-1110.71,0.00016849,2]
[351641172,1738681844286,-1200.86,0.00016849,2]
[351641174,1738681844296,-697.17,0.00016849,2]
[351641176,1738681844306,-500.0,0.00016849,2]
[351641178,1738681844315,-953.78,0.00016849,2]
[351641180,1738681844325,-1448.74,0.00016849,2]
[351641182,1738681844335,-500.0,0.00016849,2]
[351641185,1738681844345,-2224.89,0.00016849,2]
[351641187,1738681844355,-500.0,0.00016849,2]
[351641188,1738681844365,-500.0,0.00016849,2]
[351641190,1738681844378,-1356.74,0.00016849,2]
[351641193,1738681844388,-1429.26,0.00016849,2]
[351641195,1738681844398,-6350.82,0.00016849,2]
[351641197,1738681844408,-500.0,0.00016849,2]
[351641199,1738681844418,-500.0,0.00016849,2]
[351641201,1738681844429,-1081.14,0.00016849,2]
[351641203,1738681844442,-1083.74,0.00016849,2]
[351641205,1738681844452,-304.59752173,0.00016849,2]
[351641207,1738681844463,-2703.72,0.00016849,2]
[351641209,1738681844472,-9905.86,0.00016849,2]
[351641211,1738681844482,-500.0,0.00016849,2]
[351641214,1738681844503,-500.0,0.00016849,2]
[351641216,1738681844514,-3014.71,0.00016849,2]
[351641218,1738681844524,-500.0,0.00016849,2]
[351641220,1738681844534,-500.0,0.00016849,2]
[351641222,1738681844544,-509.42,0.00016849,2]
[351641224,1738681844554,-1254.6,0.00016849,2]
[351641226,1738681844565,-1950.16,0.00016849,2]
[351641228,1738681844575,-1036.56,0.00016849,2]
[351641230,1738681844585,-673.62,0.00016849,2]
[351641232,1738681844595,-1414.72,0.00016849,2]
[351641234,1738681844606,-500.0,0.00016849,2]
[351641236,1738681844616,-1491.03,0.00016849,2]
[351641238,1738681844627,-500.0,0.00016849,2]
[351641240,1738681844636,-2485.55,0.00016849,2]
[351641242,1738681844646,-606.05,0.00016849,2]
[351641244,1738681844657,-4907.09,0.00016849,2]
[351641246,1738681844667,-362.6539157,0.00016849,2]
[351641248,1738681844677,-500.0,0.00016849,2]
[351641250,1738681844690,-3551.06,0.00016849,2]
[351641252,1738681844700,-500.0,0.00016849,2]
[351641254,1738681844711,-500.0,0.00016849,2]
[351641256,1738681844721,-1039.9,0.00016849,2]
[351641258,1738681844731,-500.0,0.00016849,2]
[351641260,1738681844740,-7000.0,0.000169,2]
[351641262,1738681844750,-2506.6249353,0.000169,2]
[351641265,1738681844761,-500.0,0.00016904,2]
[351641267,1738681844770,-355.581302,0.00016904,2]
[351641269,1738681844780,-1126.8742391,0.00016938,2]
[351641271,1738681844790,-500.0,0.00016973,2]
[351641273,1738681844800,-509.34085419,0.00016973,2]
[351641275,1738681844809,-414.9960342,0.00016973,2]
[351641276,1738681844819,-500.0,0.00016973,2]
[351641277,1738681844828,-251.54762207,0.00016973,2]
[351641278,1738681844839,-500.0,0.00016973,2]
[351641279,1738681844848,-421.15230428,0.0001698,2]
[351641280,1738681844858,-500.0,0.00016986,2]
[351641281,1738681844868,-500.0,0.00016986,2]
[351641282,1738681844878,-500.0,0.00016986,2]
[351641283,1738681844888,-500.0,0.00016986,2]
[351641284,1738681844899,-500.0,0.00016986,2]
[351641285,1738681844908,-500.0,0.00016986,2]
[351641286,1738681844918,-388.74766412,0.00016986,2]
[351641287,1738681844929,-1127.12,0.00016986,2]
[351641288,1738681844944,-1232.19,0.00016986,2]
[351641289,1738681844954,-500.0,0.00016986,2]
[351641290,1738681844964,-467.89269213,0.00016986,2]
[351641291,1738681844975,-500.0,0.00016986,2]
[351641292,1738681844986,-500.0,0.00016986,2]
[351641293,1738681844996,-677.23,0.00016986,2]
[351641294,1738681845006,-465.13582199,0.00016986,2]
[351641295,1738681845016,-1294.44,0.00016986,2]
[351641296,1738681845026,-500.0,0.00016986,2]
[351641297,1738681845036,-500.0,0.00016986,2]
[351641298,1738681845047,-538.68,0.00016986,2]
[351641299,1738681845057,-500.0,0.00016986,2]
[351641300,1738681845067,-500.0,0.00016986,2]
[351641301,1738681845077,-500.0,0.00016986,2]
[351641302,1738681845088,-550.84,0.00016986,2]
[351641303,1738681845098,-500.0,0.00016986,2]
[351641304,1738681845109,-999.3,0.00016986,2]
[351641305,1738681845119,-500.0,0.00016986,2]
[351641306,1738681845129,-2999.41,0.00016986,2]
[351641307,1738681845139,-500.0,0.00016986,2]
[351641308,1738681845149,-500.0,0.00016986,2]
[351641309,1738681845161,-500.0,0.00016986,2]
[351641310,1738681845171,-533.12,0.00016986,2]
[351641311,1738681845183,-500.0,0.00016986,2]
[351641312,1738681845197,-500.0,0.00016986,2]
[351641313,1738681845207,-500.0,0.00016986,2]
[351641314,1738681845217,-500.0,0.00016986,2]
[351641315,1738681845227,-500.0,0.00016986,2]
[351641316,1738681845238,-968.27,0.00016986,2]
[351641317,1738681845248,-500.0,0.00016986,2]
[351641318,1738681845257,-619.00892421,0.00016986,2]
[351641319,1738681845267,-500.0,0.00016986,2]
[351641320,1738681845277,-487.88066768,0.00016986,2]
[351641321,1738681845287,-500.0,0.00016986,2]
[351641322,1738681845297,-630.27574715,0.00016986,2]
[351641323,1738681845307,-797.58,0.00016986,2]
[351641324,1738681845316,-553.89,0.00016986,2]
[351641325,1738681845326,-500.0,0.00016986,2]
[351641326,1738681845336,-1629.5,0.00016986,2]
[351641327,1738681845347,-500.0,0.00016986,2]
[351641328,1738681845356,-1163.12,0.00016986,2]
[351641329,1738681845368,-717.9,0.00016986,2]
[351641330,1738681845381,-500.0,0.00016986,2]
[351641331,1738681845391,-1531.56,0.00016986,2]
[351641332,1738681845401,-500.0,0.00016986,2]
[351641333,1738681845412,-500.0,0.00016986,2]
[351641334,1738681845424,-1020.51,0.00016986,2]
[351641335,1738681845434,-16318.68,0.00016986,2]
[351641336,1738681845452,-927.41,0.00016986,2]
[351641337,1738681845465,-500.0,0.00016986,2]
[351641338,1738681845475,-500.0,0.00016986,2]
[351641339,1738681845485,-42905.46,0.00016986,2]
[351641340,1738681845495,-500.0,0.00016986,2]
[351641341,1738681845506,-3843.13,0.00016986,2]
[351641342,1738681845516,-1015.42,0.00016986,2]
[351641343,1738681845526,-901.96,0.00016986,2]
[351641344,1738681845682,-1397.81,0.00016986,2]
[351641345,1738681845698,-500.0,0.00016986,2]
[351641346,1738681845708,-3029.23,0.00016986,2]
[351641347,1738681845719,-500.0,0.00016986,2]
[351641348,1738681845729,-980.49,0.00016986,2]
[351641349,1738681845739,-617.67581509,0.00016986,2]
[351641350,1738681845749,-1477.65,0.00016986,2]
[351641351,1738681845759,-500.0,0.00016986,2]
[351641352,1738681845769,-1110.71,0.00016986,2]
[351641353,1738681845780,-1200.86,0.00016986,2]
[351641354,1738681845790,-697.17,0.00016986,2]
[351641355,1738681845801,-500.0,0.00016986,2]
[351641356,1738681845811,-953.78,0.00016986,2]
[351641357,1738681845821,-1448.74,0.00016986,2]
[351641358,1738681845831,-500.0,0.00016986,2]
[351641359,1738681845841,-2224.89,0.00016986,2]
[351641360,1738681845851,-500.0,0.00016986,2]
[351641362,1738681845862,-500.0,0.00016986,2]
[351641364,1738681845872,-1356.74,0.00016986,2]
[351641365,1738681845882,-1429.26,0.00016986,2]
[351641366,1738681845892,-6350.82,0.00016986,2]
[351641367,1738681845902,-500.0,0.00016986,2]
[351641368,1738681845912,-500.0,0.00016986,2]
[351641369,1738681845922,-1081.14,0.00016986,2]
[351641370,1738681845931,-1083.74,0.00016986,2]
[351641371,1738681845943,-2703.72,0.00016986,2]
[351641372,1738681845953,-9905.86,0.00016986,2]
[351641373,1738681845963,-500.0,0.00016986,2]
[351641374,1738681845973,-500.0,0.00016986,2]
[351641375,1738681845983,-3014.71,0.00016986,2]
[351641376,1738681845993,-500.0,0.00016986,2]
[351641377,1738681846003,-500.0,0.00016986,2]
[351641378,1738681846012,-509.42,0.00016986,2]
[351641380,1738681846023,-1254.6,0.00016986,2]
[351641381,1738681846032,-1950.16,0.00016986,2]
[351641382,1738681846043,-1036.56,0.00016986,2]
[351641383,1738681846053,-673.62,0.00016986,2]
[351641384,1738681846063,-1414.72,0.00016986,2]
[351641385,1738681846073,-500.0,0.00016986,2]
[351641386,1738681846083,-1491.03,0.00016986,2]
[351641387,1738681846093,-500.0,0.00016986,2]
[351641388,1738681846103,-2485.55,0.00016986,2]
[351641389,1738681846113,-606.05,0.00016986,2]
[351641390,1738681846123,-4907.09,0.00016986,2]
[351641391,1738681846133,-500.0,0.00016986,2]
[351641392,1738681846143,-3551.06,0.00016986,2]
[351641393,1738681846152,-500.0,0.00016986,2]
[351641394,1738681846163,-500.0,0.00016986,2]
[351641395,1738681846172,-1039.9,0.00016986,2]
[351641396,1738681846183,-500.0,0.00016986,2]
[351641397,1738681846198,-68727.81624065,0.00017,2]
[351641455,1738681846875,-1584.123956,0.00017,2]
[351641457,1738681846888,-14702.18846294,0.00017,2]
[351641459,1738681846900,-55327.7952,0.00017,2]
[351641461,1738681846911,-39661.71345806,0.00017,2]
[351641483,1738681847100,-49391.93448405,0.00017,2]
[351641486,1738681847124,-600.0,0.00017,2]
[351641490,1738681847146,-400.0,0.00017,7]
[351641493,1738681847168,-49608.06551595,0.00017,2]
[351642521,1738681923869,500.0,0.00014164,2]
[351642796,1738682411027,170.806572,0.00013973,2]